fUSD/lending_fUSD_20240814
["ID","MTS","AMOUNT","RATE_DAILY","PERIOD"]
[334818369,1723603911933,-946.485974,0.00014794,2]
[334818370,1723603911943,-946.485974,0.00014794,2]
[334818371,1723603911953,-500.0,0.00014794,2]
[334818372,1723603911966,-4841.27,0.00014794,2]
[334818373,1723603911975,-500.0,0.00014794,2]
[334818374,1723603911985,-946.485974,0.00014794,2]
[334818375,1723603911995,-500.0,0.00014794,2]
[334818376,1723603912004,-4804.39,0.00014794,2]
[334818377,1723603912013,-2504.28,0.00014794,2]
[334818378,1723603912024,-30408.94,0.00014794,2]
[334818379,1723603912033,-500.0,0.00014794,2]
[334818380,1723603912045,-946.485974,0.00014794,2]
[334818381,1723603912055,-946.485974,0.00014794,2]
[334818382,1723603912064,-500.0,0.00014794,2]
[334818383,1723603912074,-1009.0,0.00014794,2]
[334818384,1723603912083,-946.485968,0.00014794,2]
[334818385,1723603912093,-1618.42,0.00014794,2]
[334818386,1723603912102,-500.0,0.00014794,2]
[334818387,1723603912111,-1655.13,0.00014794,2]
[334818388,1723603912120,-500.0,0.00014794,2]
[334818389,1723603912130,-500.0,0.00014794,2]
[334818390,1723603912140,-500.0,0.00014794,2]
[334818391,1723603912150,-500.0,0.00014794,2]
[334818392,1723603912160,-541.79,0.00014794,2]
[334818393,1723603912170,-1939.34,0.00014794,2]
[334818394,1723603912179,-602.44,0.00014794,2]
[334818395,1723603912188,-500.0,0.00014794,2]
[334818396,1723603912197,-500.0,0.00014794,2]
[334818397,1723603912207,-3634.01,0.00014794,2]
[334818398,1723603912216,-5437.68,0.00014794,2]
[334818399,1723603912226,-500.0,0.00014794,2]
[334818400,1723603912236,-500.0,0.00014794,2]
[334818401,1723603912245,-7831.1,0.00014794,2]
[334818402,1723603912255,-500.0,0.00014794,2]
[334818403,1723603912264,-1038.5,0.00014794,2]
[334818404,1723603912274,-7282.92,0.00014794,2]
[334818405,1723603912284,-3021.74,0.00014794,2]
[334818406,1723603912293,-500.0,0.00014794,2]
[334818407,1723603912303,-1318.54,0.00014794,2]
[334818408,1723603912313,-887.76,0.00014794,2]
[334818409,1723603912322,-726.19,0.00014794,2]
[334818410,1723603912331,-500.0,0.00014794,2]
[334818411,1723603912341,-500.0,0.00014794,2]
[334818412,1723603912350,-500.0,0.00014794,2]
[334818413,1723603912359,-640.09,0.00014794,2]
[334818414,1723603912369,-6303.41,0.00014794,2]
[334818415,1723603912378,-1486.12,0.00014794,2]
[334818416,1723603912389,-500.0,0.00014794,2]
[334818417,1723603912398,-1465.83,0.00014794,2]
[334818418,1723603912407,-177.63306648,0.00014794,2]
[334818419,1723603912416,-500.0,0.00014794,2]
[334818420,1723603912425,-2619.71,0.00014794,2]
[334818421,1723603912435,-500.0,0.00014794,2]
[334818422,1723603912445,-1599.17,0.00014794,2]
[334818423,1723603912454,-6526.45,0.00014794,2]
[334818424,1723603912464,-2403.52,0.00014794,2]
[334818425,1723603912473,-775.24,0.00014794,2]
[334818426,1723603912483,-500.0,0.00014794,2]
[334818427,1723603912493,-617.42,0.00014794,2]
[334818428,1723603912502,-500.0,0.00014794,2]
[334818429,1723603912512,-2020.58,0.00014794,2]
[334818430,1723603912521,-504.65878109,0.00014794,2]
[334818431,1723603912531,-564.1,0.00014794,2]
[334818432,1723603912540,-500.0,0.00014794,2]
[334818433,1723603912550,-3030.89,0.00014794,2]
[334818434,1723603912560,-500.0,0.00014794,2]
[334818435,1723603912569,-970.69,0.00014794,2]
[334818436,1723603912579,-1492.57,0.00014794,2]
[334818437,1723603912588,-500.0,0.00014794,2]
[334818438,1723603912597,-500.0,0.00014794,2]
[334818439,1723603912607,-500.0,0.00014794,2]
[334818440,1723603912616,-8083.22,0.00014794,2]
[334818441,1723603912626,-2641.04,0.00014794,2]
[334818442,1723603912636,-748.52,0.00014794,2]
[334818443,1723603912645,-500.0,0.00014794,2]
[334818444,1723603912655,-3609.21,0.00014794,2]
[334818445,1723603912665,-500.0,0.00014794,2]
[334818446,1723603912675,-500.0,0.00014794,2]
[334818447,1723603912685,-197.8970766,0.00014794,2]
[334818448,1723603912695,-776.31,0.00014794,2]
[334818449,1723603912706,-851.45,0.00014794,2]
[334818450,1723603912716,-500.0,0.00014794,2]
[334818451,1723603912726,-500.0,0.00014794,2]
[334818452,1723603912735,-6500.63,0.00014794,2]
[334818453,1723603912747,-500.0,0.00014794,2]
[334818454,1723603912757,-500.0,0.00014794,2]
[334818455,1723603912768,-500.0,0.00014794,2]
[334818456,1723603912778,-654.47,0.00014794,2]
[334818457,1723603912788,-500.0,0.00014794,2]
[334818458,1723603912798,-12415.65,0.00014794,2]
[334818459,1723603912808,-500.0,0.00014794,2]
[334818460,1723603912817,-500.0,0.00014794,2]
[334818461,1723603912828,-514.11,0.00014794,2]
[334818462,1723603912838,-500.0,0.00014794,2]
[334818463,1723603912848,-1374.17,0.00014794,2]
[334818464,1723603912858,-500.0,0.00014794,2]
[334818465,1723603912868,-771.96,0.00014794,2]
[334818466,1723603912878,-500.0,0.00014794,2]
[334818467,1723603912888,-500.0,0.00014794,2]
[334818468,1723603912897,-500.0,0.00014794,2]
[334818469,1723603912907,-1584.87,0.00014794,2]
[334818470,1723603912917,-733.22,0.00014794,2]
[334818471,1723603912926,-500.0,0.00014794,2]
[334818472,1723603912935,-2100.84,0.00014794,2]
[334818473,1723603912946,-6987.78,0.00014794,2]
[334818474,1723603912955,-500.0,0.00014794,2]
[334818475,1723603912969,-500.0,0.00014794,2]
[334818476,1723603912979,-500.0,0.00014794,2]
[334818477,1723603912990,-500.0,0.00014794,2]
[334818478,1723603913000,-37359.85,0.00014794,2]
[334818479,1723603913010,-500.0,0.00014794,2]
[334818480,1723603913020,-500.0,0.00014794,2]
[334818481,1723603913029,-4485.26,0.00014794,2]
[334818482,1723603913039,-801.55,0.00014794,2]
[334818483,1723603913049,-3101.62,0.00014794,2]
[334818484,1723603913059,-3325.54,0.00014794,2]
[334818485,1723603913069,-1740.94,0.00014794,2]
[334818486,1723603913078,-192.34423415,0.00014794,2]
[334818487,1723603913087,-500.0,0.00014794,2]
[334818488,1723603913097,-706.4,0.00014794,2]
[334818489,1723603913106,-500.0,0.00014794,2]
[334818490,1723603913115,-500.0,0.00014794,2]
[334818491,1723603913125,-551.94,0.00014794,2]
[334818492,1723603913135,-6739.6,0.00014794,2]
[334818493,1723603913145,-500.0,0.00014794,2]
[334818494,1723603913154,-500.0,0.00014794,2]
[334818495,1723603913164,-1984.33,0.00014794,2]
[334818496,1723603913173,-515.72,0.00014794,2]
[334818497,1723603913182,-500.0,0.00014794,2]
[334818498,1723603913192,-885.1,0.00014794,2]
[334818499,1723603913201,-862.92,0.00014794,2]
[334818500,1723603913211,-1280.3,0.00014794,2]
[334818501,1723603913220,-1985.9,0.00014794,2]
[334818502,1723603913229,-500.0,0.00014794,2]
[334818503,1723603913238,-4340.54,0.00014794,2]
[334818504,1723603913248,-954.48,0.00014794,2]
[334818505,1723603913257,-7538.05,0.00014794,2]
[334818506,1723603913266,-317.23947823,0.00014794,2]
[334818507,1723603913276,-500.0,0.00014794,2]
[334818508,1723603913285,-2350.15,0.00014794,2]
[334818509,1723603913295,-500.0,0.00014794,2]
[334818510,1723603913304,-1823.31,0.00014794,2]
[334818511,1723603913313,-500.0,0.00014794,2]
[334818512,1723603913323,-786.92,0.00014794,2]
[334818513,1723603913332,-1000.0,0.000148,4]
[334818514,1723603913341,-199.67,0.0001489,2]
[334818515,1723603913351,-152.47241704,0.00014898,2]
[334818516,1723603913360,-835.07,0.00014932,2]
[334818517,1723603913370,-170.57448432,0.00014968,2]
[334818518,1723603913379,-267.38884637,0.00014988,2]
[334818519,1723603913390,-155.0,0.00015,2]
[334818520,1723603913400,-724.00248248,0.00015,2]
[334818521,1723603913410,-495.0,0.00015,2]
[334818522,1723603913419,-815.54719785,0.00015,2]
[334818523,1723603913429,-1442.0,0.00015,2]
[334818524,1723603913439,-9026.0,0.00015,2]
[334818525,1723603913448,-1176.05982,0.00015,2]
[334818526,1723603913458,-152.47241704,0.00015006,2]
[334818527,1723603913468,-150.0,0.00015033,2]
[334818528,1723603913478,-222.4512183,0.00015058,2]
[334818529,1723603913488,-512.5101983,0.00015058,2]
[334818530,1723603913498,-3114.6614692,0.00015058,2]
[334818531,1723603913507,-2467.9241017,0.00015058,2]
[334818532,1723603913516,-500.0,0.00015068,2]
[334818533,1723603913526,-1500.86,0.00015068,2]
[334818534,1723603913535,-500.0,0.00015068,2]
[334818535,1723603913544,-500.0,0.00015068,2]
[334818536,1723603913554,-500.0,0.00015068,2]
[334818537,1723603913563,-500.0,0.00015068,2]
[334818538,1723603913572,-500.0,0.00015068,2]
[334818539,1723603913582,-500.0,0.00015068,2]
[334818540,1723603913591,-500.0,0.00015068,2]
[334818541,1723603913601,-500.0,0.00015068,2]
[334818542,1723603913610,-500.0,0.00015068,2]
[334818543,1723603913620,-500.0,0.00015068,2]
[334818544,1723603913629,-500.0,0.00015068,2]
[334818545,1723603913639,-1717.68,0.00015068,2]
[334818546,1723603913648,-500.0,0.00015068,2]
[334818547,1723603913657,-500.0,0.00015068,2]
[334818548,1723603913667,-1135.6,0.00015068,2]
[334818549,1723603913676,-500.0,0.00015068,2]
[334818550,1723603913687,-500.0,0.00015068,2]
[334818551,1723603913696,-500.0,0.00015068,2]
[334818552,1723603913706,-500.0,0.00015068,2]
[334818553,1723603913715,-500.0,0.00015068,2]
[334818554,1723603913725,-500.0,0.00015068,2]
[334818555,1723603913735,-500.0,0.00015068,2]
[334818556,1723603913746,-505.87,0.00015068,2]
[334818557,1723603913756,-668.17,0.00015068,2]
[334818558,1723603913765,-2087.27,0.00015068,2]
[334818559,1723603913774,-1187.42,0.00015068,2]
[334818560,1723603913784,-504.46,0.00015068,2]
[334818561,1723603913794,-500.0,0.00015068,2]
[334818562,1723603913803,-500.0,0.00015068,2]
[334818563,1723603913813,-500.0,0.00015068,2]
[334818564,1723603913823,-639.38,0.00015068,2]
[334818565,1723603913833,-500.0,0.00015068,2]
[334818566,1723603913842,-515.44835569,0.00015068,2]
[334818567,1723603913852,-500.0,0.00015068,2]
[334818568,1723603913861,-500.0,0.00015068,2]
[334818569,1723603913871,-500.0,0.00015068,2]
[334818570,1723603913881,-500.0,0.00015068,2]
[334818571,1723603913891,-500.0,0.00015068,2]
[334818572,1723603913901,-500.0,0.00015068,2]
[334818573,1723603913912,-500.0,0.00015068,2]
[334818574,1723603913922,-1269.99,0.00015068,2]
[334818575,1723603913931,-500.0,0.00015068,2]
[334818576,1723603913940,-500.0,0.00015068,2]
[334818577,1723603913950,-500.0,0.00015068,2]
[334818578,1723603913961,-500.0,0.00015068,2]
[334818579,1723603913970,-500.0,0.00015068,2]
[334818580,1723603913980,-500.0,0.00015068,2]
[334818581,1723603913990,-711.22,0.00015068,2]
[334818582,1723603913999,-942.4,0.00015068,2]
[334818583,1723603914009,-500.0,0.00015068,2]
[334818584,1723603914018,-1243.83,0.00015068,2]
[334818585,1723603914028,-1433.34,0.00015068,2]
[334818586,1723603914040,-500.0,0.00015068,2]
[334818587,1723603914051,-641.88,0.00015068,2]
[334818588,1723603914060,-500.0,0.00015068,2]
[334818589,1723603914070,-681.49,0.00015068,2]
[334818590,1723603914079,-507.11016524,0.00015068,2]
[334818591,1723603914089,-596.25,0.00015068,2]
[334818592,1723603914098,-514.21,0.00015068,2]
[334818593,1723603914107,-500.0,0.00015068,2]
[334818594,1723603914118,-500.0,0.00015068,2]
[334818595,1723603914127,-500.0,0.00015068,2]
[334818596,1723603914139,-510.94173829,0.00015068,2]
[334818597,1723603914148,-840.72,0.00015068,2]
[334818598,1723603914158,-500.0,0.00015068,2]
[334818599,1723603914167,-519.79,0.00015068,2]
[334818600,1723603914176,-500.0,0.00015068,2]
[334818601,1723603914186,-500.0,0.00015068,2]
[334818602,1723603914195,-261.440025,0.00015068,2]
[334818603,1723603914204,-1752.99,0.00015068,2]
[334818604,1723603914214,-500.0,0.00015068,2]
[334818605,1723603914225,-423.26361193,0.00015068,2]
[334818606,1723603914235,-500.0,0.00015068,2]
[334818607,1723603914245,-681.04,0.00015068,2]
[334818608,1723603914254,-500.0,0.00015068,2]
[334818609,1723603914264,-500.0,0.00015068,2]
[334818610,1723603914274,-500.0,0.00015068,2]
[334818611,1723603914284,-500.0,0.00015068,2]
[334818612,1723603914294,-500.0,0.00015068,2]
[334818613,1723603914304,-500.0,0.00015068,2]
[334818614,1723603914313,-500.0,0.00015068,2]
[334818615,1723603914323,-500.0,0.00015068,2]
[334818616,1723603914332,-499.28664742,0.00015068,2]
[334818617,1723603914342,-500.0,0.00015068,2]
[334818618,1723603914351,-500.0,0.00015068,2]
[334818619,1723603914360,-515.84,0.00015068,2]
[334818620,1723603914370,-500.0,0.00015068,2]
[334818621,1723603914379,-500.0,0.00015068,2]
[334818622,1723603914389,-500.0,0.00015068,2]
[334818623,1723603914399,-500.0,0.00015068,2]
[334818624,1723603914409,-294.50543327,0.00015068,2]
[334818625,1723603914418,-788.88,0.00015068,2]
[334818626,1723603914428,-500.0,0.00015068,2]
[334818627,1723603914438,-260.0379061,0.00015068,2]
[334818628,1723603914447,-500.0,0.00015068,2]
[334818629,1723603914457,-500.0,0.00015068,2]
[334818630,1723603914467,-500.0,0.00015068,2]
[334818631,1723603914476,-500.0,0.00015068,2]
[334818632,1723603914485,-500.0,0.00015068,2]
[334818633,1723603914495,-540.27,0.00015068,2]
[334818634,1723603914506,-500.0,0.00015068,2]
[334818635,1723603914516,-500.0,0.00015068,2]
[334818636,1723603914525,-500.0,0.00015068,2]
[334818637,1723603914535,-500.0,0.00015068,2]
[334818638,1723603914546,-500.0,0.00015068,2]
[334818639,1723603914556,-539.27,0.00015068,2]
[334818640,1723603914566,-500.0,0.00015068,2]
[334818641,1723603914575,-500.0,0.00015068,2]
[334818642,1723603914585,-556.85,0.00015068,2]
[334818643,1723603914830,-500.0,0.00015068,2]
[334818644,1723603914840,-510.55,0.00015068,2]
[334818645,1723603914849,-1828.99,0.00015068,2]
[334818646,1723603914859,-500.0,0.00015068,2]
[334818647,1723603914868,-345.90729258,0.00015068,2]
[334818648,1723603914878,-500.0,0.00015068,2]
[334818649,1723603914888,-521.14,0.00015068,2]
[334818650,1723603914898,-500.0,0.00015068,2]
[334818651,1723603914908,-500.0,0.00015068,2]
[334818652,1723603914917,-500.0,0.00015068,2]
[334818653,1723603914927,-500.0,0.00015068,2]
[334818654,1723603914936,-500.0,0.00015068,2]
[334818655,1723603914946,-500.0,0.00015068,2]
[334818656,1723603914956,-500.0,0.00015068,2]
[334818657,1723603914975,-500.0,0.00015068,2]
[334818658,1723603914984,-500.0,0.00015068,2]
[334818659,1723603914994,-788.86,0.00015068,2]
[334818660,1723603915004,-500.0,0.00015068,2]
[334818661,1723603915014,-500.0,0.00015068,2]
[334818662,1723603915024,-500.0,0.00015068,2]
[334818663,1723603915033,-500.0,0.00015068,2]
[334818664,1723603915042,-570.12,0.00015068,2]
[334818665,1723603915052,-710.6,0.00015068,2]
[334818666,1723603915061,-500.0,0.00015068,2]
[334818667,1723603915071,-500.0,0.00015068,2]
[334818668,1723603915080,-500.0,0.00015068,2]
[334818669,1723603915090,-767.65,0.00015068,2]
[334818670,1723603915100,-500.0,0.00015068,2]
[334818671,1723603915109,-550.4,0.00015068,2]
[334818672,1723603915119,-500.0,0.00015068,2]
[334818673,1723603915129,-500.0,0.00015068,2]
[334818674,1723603915140,-500.0,0.00015068,2]
[334818675,1723603915150,-500.0,0.00015068,2]
[334818676,1723603915159,-500.0,0.00015068,2]
[334818677,1723603915169,-500.0,0.00015068,2]
[334818678,1723603915179,-500.0,0.00015068,2]
[334818679,1723603915188,-500.0,0.00015068,2]
[334818680,1723603915198,-1176.84,0.00015068,2]
[334818681,1723603915208,-503.14376935,0.00015068,2]
[334818682,1723603915217,-593.23,0.00015068,2]
[334818683,1723603915227,-500.0,0.00015068,2]
[334818684,1723603915237,-500.0,0.00015068,2]
[334818685,1723603915247,-500.0,0.00015068,2]
[334818686,1723603915258,-500.0,0.00015068,2]
[334818687,1723603915267,-500.0,0.00015068,2]
[334818688,1723603915277,-500.0,0.00015068,2]
[334818689,1723603915287,-500.0,0.00015068,2]
[334818690,1723603915296,-500.0,0.00015068,2]
[334818691,1723603915306,-500.0,0.00015068,2]
[334818692,1723603915316,-500.0,0.00015068,2]
[334818693,1723603915325,-500.0,0.00015068,2]
[334818694,1723603915337,-1645.84,0.00015068,2]
[334818695,1723603915346,-500.0,0.00015068,2]
[334818696,1723603915356,-500.0,0.00015068,2]
[334818697,1723603915365,-500.0,0.00015068,2]
[334818698,1723603915375,-500.0,0.00015068,2]
[334818699,1723603915384,-500.0,0.00015068,2]
[334818700,1723603915396,-500.0,0.00015068,2]
[334818701,1723603915408,-527.39,0.00015068,2]
[334818702,1723603915418,-500.0,0.00015068,2]
[334818703,1723603915428,-500.0,0.00015068,2]
[334818704,1723603915438,-500.0,0.00015068,2]
[334818705,1723603915447,-500.0,0.00015068,2]
[334818706,1723603915457,-150.0,0.00015068,2]
[334818707,1723603915467,-679.23,0.00015068,2]
[334818708,1723603915476,-500.0,0.00015068,2]
[334818709,1723603915486,-500.0,0.00015068,2]
[334818710,1723603915495,-500.0,0.00015068,2]
[334818711,1723603915505,-500.0,0.00015068,2]
[334818712,1723603915515,-503.04300734,0.00015068,2]
[334818713,1723603915524,-500.0,0.00015068,2]
[334818714,1723603915534,-1488.54,0.00015068,2]
[334818715,1723603915544,-500.0,0.00015068,2]
[334818716,1723603915554,-500.0,0.00015068,2]
[334818717,1723603915564,-500.0,0.00015068,2]
[334818718,1723603915573,-500.0,0.00015068,2]
[334818719,1723603915583,-500.0,0.00015068,2]
[334818720,1723603915592,-500.0,0.00015068,2]
[334818721,1723603915602,-171.13570729,0.00015068,2]
[334818722,1723603915612,-500.0,0.00015068,2]
[334818723,1723603915622,-500.0,0.00015068,2]
[334818724,1723603915631,-625.85,0.00015068,2]
[334818725,1723603915642,-500.0,0.00015068,2]
[334818726,1723603915652,-500.0,0.00015068,2]
[334818727,1723603915662,-500.0,0.00015068,2]
[334818728,1723603915672,-3037.22,0.00015068,2]
[334818729,1723603915682,-500.0,0.00015068,2]
[334818730,1723603915692,-300.0,0.00015068,2]
[334818731,1723603915702,-500.0,0.00015068,2]
[334818732,1723603915712,-500.0,0.00015068,2]
[334818733,1723603915722,-500.0,0.00015068,2]
[334818734,1723603915732,-500.0,0.00015068,2]
[334818735,1723603915743,-1050.9,0.00015068,2]
[334818736,1723603915752,-500.0,0.00015068,2]
[334818737,1723603915762,-500.0,0.00015068,2]
[334818738,1723603915772,-500.0,0.00015068,2]
[334818739,1723603915782,-500.0,0.00015068,2]
[334818740,1723603915792,-500.0,0.00015068,2]
[334818741,1723603915803,-500.0,0.00015068,2]
[334818742,1723603915813,-502.64494869,0.00015068,2]
[334818743,1723603915823,-500.0,0.00015068,2]
[334818744,1723603915832,-500.0,0.00015068,2]
[334818745,1723603915842,-500.0,0.00015068,2]
[334818746,1723603915852,-500.0,0.00015068,2]
[334818747,1723603915862,-500.0,0.00015068,2]
[334818748,1723603915871,-500.0,0.00015068,2]
[334818749,1723603915881,-500.0,0.00015068,2]
[334818750,1723603915892,-500.0,0.00015068,2]
[334818751,1723603915901,-500.0,0.00015068,2]
[334818752,1723603915911,-898.04,0.00015068,2]
[334818753,1723603915921,-500.0,0.00015068,2]
[334818754,1723603915931,-500.0,0.00015068,2]
[334818755,1723603915941,-1015.12,0.00015068,2]
[334818756,1723603915950,-500.0,0.00015068,2]
[334818757,1723603915963,-677.19,0.00015068,2]
[334818758,1723603915973,-3125.45,0.00015068,2]
[334818759,1723603915983,-2121.22,0.00015068,2]
[334818760,1723603915992,-500.0,0.00015068,2]
[334818761,1723603916002,-500.0,0.00015068,2]
[334818762,1723603916011,-935.8,0.00015068,2]
[334818763,1723603916021,-500.0,0.00015068,2]
[334818764,1723603916030,-2706.39,0.00015068,2]
[334818765,1723603916042,-500.0,0.00015068,2]
[334818766,1723603916052,-500.0,0.00015068,2]
[334818767,1723603916061,-500.0,0.00015068,2]
[334818768,1723603916071,-500.0,0.00015068,2]
[334818769,1723603916080,-500.0,0.00015068,2]
[334818770,1723603916089,-500.0,0.00015068,2]
[334818771,1723603916099,-4210.94,0.00015068,2]
[334818772,1723603916108,-4601.07,0.00015068,2]
[334818773,1723603916117,-500.0,0.00015068,2]
[334818774,1723603916127,-1228.41,0.00015068,2]
[334818775,1723603916138,-500.0,0.00015068,2]
[334818776,1723603916147,-951.16,0.00015068,2]
[334818777,1723603916157,-500.0,0.00015068,2]
[334818778,1723603916167,-919.64,0.00015068,2]
[334818779,1723603916176,-584.56,0.00015068,2]
[334818780,1723603916186,-1794.95,0.00015068,2]
[334818781,1723603916195,-500.0,0.00015068,2]
[334818782,1723603916204,-3321.93,0.00015068,2]
[334818783,1723603916214,-1422.69,0.00015068,2]
[334818784,1723603916223,-500.0,0.00015068,2]
[334818785,1723603916233,-2496.28,0.00015068,2]
[334818786,1723603916242,-500.0,0.00015068,2]
[334818787,1723603916252,-1937.4,0.00015068,2]
[334818788,1723603916261,-500.0,0.00015068,2]
[334818789,1723603916271,-580.94335661,0.00015068,2]
[334818790,1723603916280,-702.18,0.00015068,2]
[334818791,1723603916289,-500.0,0.00015068,2]
[334818792,1723603916300,-500.0,0.00015068,2]
[334818793,1723603916309,-525.91,0.00015068,2]
[334818794,1723603916319,-720.77,0.00015068,2]
[334818795,1723603916328,-2973.74,0.00015068,2]
[334818796,1723603916337,-500.0,0.00015068,2]
[334818797,1723603916347,-657.62,0.00015068,2]
[334818798,1723603916356,-2208.41,0.00015068,2]
[334818799,1723603916366,-2020.58,0.00015068,2]
[334818800,1723603916375,-500.0,0.00015068,2]
[334818801,1723603916385,-956.36,0.00015068,2]
[334818802,1723603916395,-500.0,0.00015068,2]
[334818803,1723603916407,-500.0,0.00015068,2]
[334818804,1723603916417,-830.48,0.00015068,2]
[334818805,1723603916427,-908.14,0.00015068,2]
[334818806,1723603916436,-500.0,0.00015068,2]
[334818807,1723603916446,-1531.76,0.00015068,2]
[334818808,1723603916455,-806.72,0.00015068,2]
[334818809,1723603916464,-500.0,0.00015068,2]
[334818810,1723603916474,-1233.68,0.00015068,2]
[334818811,1723603916483,-3549.23,0.00015068,2]
[334818812,1723603916493,-506.83,0.00015068,2]
[334818813,1723603916503,-881.49,0.00015068,2]
[334818814,1723603916512,-1686.3,0.00015068,2]
[334818815,1723603916522,-1104.64,0.00015068,2]
[334818816,1723603916532,-500.0,0.00015068,2]
[334818817,1723603916541,-959.01,0.00015068,2]
[334818818,1723603916551,-500.0,0.00015068,2]
[334818819,1723603916560,-3432.32,0.00015068,2]
[334818820,1723603916569,-3444.79,0.00015068,2]
[334818821,1723603916579,-500.0,0.00015068,2]
[334818822,1723603916589,-500.0,0.00015068,2]
[334818823,1723603916599,-500.0,0.00015068,2]
[334818824,1723603916608,-1279.57,0.00015068,2]
[334818825,1723603916617,-500.0,0.00015068,2]
[334818826,1723603916626,-644.3,0.00015068,2]
[334818827,1723603916635,-626.74545849,0.00015068,2]
[334818828,1723603916645,-500.0,0.00015068,2]
[334818829,1723603916655,-500.0,0.00015068,2]
[334818830,1723603916664,-526.04,0.00015068,2]
[334818831,1723603916678,-500.0,0.00015068,2]
[334818832,1723603916688,-604.27,0.00015068,2]
[334818833,1723603916698,-1106.38,0.00015068,2]
[334818834,1723603916707,-1190.65,0.00015068,2]
[334818835,1723603916716,-500.0,0.00015068,2]
[334818836,1723603916725,-1152.6,0.00015068,2]
[334818837,1723603916734,-500.0,0.00015068,2]
[334818838,1723603916744,-500.0,0.00015068,2]
[334818839,1723603916753,-500.0,0.00015068,2]
[334818840,1723603916763,-621.41,0.00015068,2]
[334818841,1723603916773,-500.0,0.00015068,2]
[334818842,1723603916783,-500.0,0.00015068,2]
[334818843,1723603916793,-3396.28,0.00015068,2]
[334818844,1723603916802,-500.0,0.00015068,2]
[334818845,1723603916811,-891.26,0.00015068,2]
[334818846,1723603916821,-904.92,0.00015068,2]
[334818847,1723603916830,-500.0,0.00015068,2]
[334818848,1723603916839,-500.0,0.00015068,2]
[334818849,1723603916848,-500.0,0.00015068,2]
[334818850,1723603916858,-2942.78,0.00015068,2]
[334818851,1723603916867,-500.0,0.00015068,2]
[334818852,1723603916876,-321.80756611,0.00015068,2]
[334818853,1723603916885,-692.81,0.00015068,2]
[334818854,1723603916895,-671.73,0.00015068,2]
[334818855,1723603916905,-500.0,0.00015068,2]
[334818856,1723603916914,-1883.45,0.00015068,2]
[334818857,1723603916923,-500.0,0.00015068,2]
[334818858,1723603916934,-4358.76,0.00015068,2]
[334818859,1723603916943,-531.95,0.00015068,2]
[334818860,1723603916953,-500.0,0.00015068,2]
[334818861,1723603916966,-500.0,0.00015068,2]
[334818862,1723603916975,-852.51,0.00015068,2]
[334818863,1723603916984,-601.64,0.00015068,2]
[334818864,1723603916993,-500.0,0.00015068,2]
[334818865,1723603917004,-1102.89,0.00015068,2]
[334818866,1723603917013,-500.0,0.00015068,2]
[334818867,1723603917022,-500.0,0.00015068,2]
[334818868,1723603917032,-3773.36,0.00015068,2]